Cogmind - Beta 12 @@@ ROGUE MODE // 2023.07.31 @ 15:44:15 Player: TheGreatBorealis Result: Self-destructed Performance ------------- Evolutions (3) 1500 Regions Visited (6) 1200 Robots Destroyed (66) 330 Value Destroyed (1920) 1920 Prototype IDs (27) 540 Alien Tech Used (0) 0 Bonus (300) 300 TOTAL SCORE: 5790 Bonus ------- Aligned with FarCom 300 Cogmind --------- Core Integrity 566/700 Matter 300/300 Energy 310/310 System Corruption 2% Temperature Cool (0) Movement Rolling (145) Ox3 Location -7/Factory Parts ------- > --- POWER (1) -------- Fission Core > --- PROPULSION (3) --- Armored Huge Wheel > --- UTILITY (7) ------ Huge Storage Unit Improved Terrain Scan Processor Improved Terrain Scan Processor Target Analyzer Armor Integrity Analyzer Microactuators Improved Medium Armor Plating > --- WEAPON (2) ------- Greatsword > --- INVENTORY (25) --- Fission Core Fission Core Huge Storage Unit Improved Signal Interpreter Improved Signal Interpreter Improved Terrain Scanner Advanced Terrain Scan Processor 0b10 Alert Chip Improved Melee Analysis Suite Kinecellerator Medium Reactive Plating Medium Reflective Plating Insulated Plating Powered Armor Hardlight Generator Shield Generator Hacking Suite Hacking Suite Gauss Rifle Gauss Rifle Power Maul Greatsword Peak State ------------ > --- POWER ------------ Improved Deuterium Engine > --- PROPULSION ------- Armored Huge Wheel Cooled Airjet > --- UTILITY ---------- Huge Storage Unit Improved Terrain Scan Processor Improved Terrain Scan Processor Armor Integrity Analyzer Armor Integrity Analyzer Microactuators Improved Medium Armor Plating > --- WEAPON ----------- Greatsword > --- INVENTORY -------- Light Deuterium Engine Titanium Leg VSS Leg Gravmag System Cooled Airjet Improved Heat Sink Improved Signal Interpreter Improved Terrain Scanner 0b10 Alert Chip Improved Melee Analysis Suite Reaction Control System Hardened Medium Armor Plating Improved Medium Armor Plating Insulated Plating Hardlight Generator Hacking Suite Sensor Drone Bay Lightning Gun Gauss Rifle [Rating: 55] Favorites ----------- Power Light Nuclear Core Engine Improved Deuterium Engine Power Core Light Nuclear Core Propulsion Compact Wheel Leg Aluminum Leg Wheel Compact Wheel Hover Unit Cooled Airjet Utility Armor Integrity Analyzer Device Improved Terrain Scanner Storage Huge Storage Unit Processor Armor Integrity Analyzer Protection Improved Medium Armor Plating Weapon Greatsword Energy Gun Small Laser Ballistic Gun Assault Rifle Ballistic Cannon Assault Cannon Slashing Weapon Greatsword Build | -11 -10 -10 -10 -9 -8 -7 ------- Run | Jun Mat Min Exi Min Mat Fac Slots Evolved 6 | . . . . . 4 2 Power . | . . . . . . . Propulsion 1 | . . . . . 1 . Utility 5 | . . . . . 3 2 Weapon . | . . . . . . . Parts Attached 76 | 1 8 1 2 3 17 44 Power 8 | . 1 1 . . 1 5 Engine 4 | . 1 . . . . 3 Core 4 | . . 1 . . 1 2 Reactor . | . . . . . . . Propulsion 16 | . 2 . . 1 6 7 Treads . | . . . . . . . Leg . | . . . . . . . Wheel 12 | . 2 . . 1 6 3 Hover 4 | . . . . . . 4 Flight . | . . . . . . . Utility 37 | 1 3 . 1 . 7 25 Device 20 | 1 1 . . . 1 17 Storage 4 | . 1 . 1 . 1 1 Processor 7 | . . . . . 2 5 Hackware . | . . . . . . . Protection 6 | . 1 . . . 3 2 Artifact . | . . . . . . . Weapon 15 | . 2 . 1 2 3 7 Energy Gun 1 | . . . . . . 1 Energy Cannon . | . . . . . . . Ballistic Gun 4 | . 2 . 1 . . 1 Ballistic Cannon 5 | . . . . 2 3 . Launcher . | . . . . . . . Special Weapon . | . . . . . . . Impact Weapon . | . . . . . . . Slashing Weapon 5 | . . . . . . 5 Piercing Weapon . | . . . . . . . Special Melee Weapon . | . . . . . . . Unidentified Prototypes 4 | . . . . . . 4 Parts Lost 19 | . 1 . . 1 13 4 Power 2 | . . . . . 2 . Propulsion 7 | . . . . 1 4 2 Utility 6 | . 1 . . . 4 1 Weapon 4 | . . . . . 3 1 Highest Loss Streak 8 | . 1 . . 1 8 1 To Critical Strikes 1 | . . . . . 1 . Average Slot Usage (%) 83 | . 98 100 94 84 73 79 Engine 3 | . 14 6 . . . 3 Core 5 | . . 7 14 14 6 2 Wheel 15 | . 24 28 28 27 19 8 Hover 3 | . . . . . . 5 Device 6 | . 3 . . . 6 9 Storage 8 | . 14 14 13 14 9 5 Processor 15 | . . . . . 7 26 Protection 6 | . 9 14 8 . 6 5 Ballistic Gun 5 | . 18 28 28 3 . . Ballistic Cannon 4 | . . . . 24 16 . Slashing Weapon 3 | . . . . . . 6 Naked Turns 9 | . . . . . 9 . Heaviest Build 412 | 13 91 91 208 216 412 108 Greatest Support 42 | 20 26 26 26 32 42 40 Greatest Overweight (x) 33 | . 3 3 7 8 33 3 Average Overweight (x) 2 | . 2 3 3 6 4 1 Largest Inventory Capacity 35 | 8 25 25 35 35 35 25 Average Capacity 24 | 8 23 25 27 35 32 21 Most Carried 35 | 6 19 25 25 29 35 25 Average Carried 19 | 6 13 23 21 26 28 16 Final Capacity 35 | 8 25 25 35 35 5 25 Final Carried 29 | 6 19 25 22 29 5 23 Class Distribution -------------------- 30% | Gladiator 24% | Mutant 21% | Assassin 15% | Hauler-Mutant 7% | Hauler-Skirmisher Dominant Class ---------------- Mutant | -10/Materials Mutant | -10/Mines Mutant | -10/Exiles Hauler-Mutant | -9/Mines Hauler-Skirmisher | -8/Materials Gladiator | -7/Factory Resources | -11 -10 -10 -10 -9 -8 -7 ----------- Run | Jun Mat Min Exi Min Mat Fac Matter Collected 1801 | 210 246 62 10 243 343 687 Remotely 10 | 10 . . . . . . Salvage Created 2492 | 120 358 128 . 161 490 1235 Parts 138 | 4 24 5 . 14 25 66 Haulers Intercepted 5 | . 1 . . . 2 2 Recyclers Shooed 1 | . 1 . . . . . Parts Field Recycled . | . . . . . . . Retrieved Matter . | . . . . . . . Parts Self-Destructed . | . . . . . . . Prevented . | . . . . . . . Kills | -11 -10 -10 -10 -9 -8 -7 ------- Run | Jun Mat Min Exi Min Mat Fac Combat Hostiles Destroyed 46 | . 4 3 . 7 14 18 Melee 18 | . . . . . . 18 Guns 8 | . 4 3 . 1 . . Cannons 20 | . . . . 6 14 . Classes Destroyed 12 | 2 5 . . 2 . 3 Worker 1 | . 1 . . . . . Tunneler 1 | 1 . . . . . . Hauler 5 | . 1 . . . 2 2 Recycler 7 | 1 2 . . . 1 3 Watcher 6 | . 3 . . . . 3 Swarmer 15 | . 3 . . 3 5 4 Grunt 17 | . 1 3 . 2 6 5 Duelist 1 | . . . . 1 . . Sentry 4 | . . . . 1 3 . Specialist 4 | . . . . . . 4 Hunter 2 | . . . . . . 2 Programmer 3 | . . . . . . 3 Best Kill Streak 6 | 2 6 2 . 3 3 5 Combat Bots Only 5 | . 3 2 . 3 3 5 Max Kills in Single Turn 3 | 1 3 1 . 1 1 1 Gunslinging . | . . . . . . . Exploded . | . . . . . . . Melee 1 | . . . . . . 1 Uniques/NPCs Destroyed . | . . . . . . . Combat | -11 -10 -10 -10 -9 -8 -7 -------- Run | Jun Mat Min Exi Min Mat Fac Damage Taken 4271 | . 261 199 . 303 2045 1463 Core 793 | . 28 64 . 30 537 134 Absorbed by Shields . | . . . . . . . Redirected to Shielding 49 | . . . . . 49 . Core Remaining (%) 51 | 100 . . . 51 2 . Volleys Fired 105 | 5 20 13 . 21 46 . Largest 2 | 2 2 2 . 2 2 . Hottest 88 | 80 60 40 . 88 88 . Shots Fired 208 | 10 40 26 . 42 90 . Gun 87 | 10 40 26 . 11 . . Cannon 121 | . . . . 31 90 . Launcher . | . . . . . . . Special . | . . . . . . . Kinetic 189 | . 31 26 . 42 90 . Thermal 19 | 10 9 . . . . . Explosive . | . . . . . . . Electromagnetic . | . . . . . . . Robot Hit Streak 11 | 5 6 10 . 7 11 . Robot Miss Streak 9 | 2 3 2 . 9 8 . Penetration Max . | . . . . . . . Secondary Targets 3 | . 2 1 . . . . Max Gunslinging Chain 1 | . 1 1 . . . . Shots Hit Robots 192 | 6 22 20 . 25 62 57 Core Hits 115 | 3 16 8 . 16 50 22 Critical Kills . | . . . . . . . Critical Parts Destroyed . | . . . . . . . Critical Strikes 6 | . . . . . . 6 Sever 6 | . . . . . . 6 Melee Attacks 129 | . . . . . . 129 Impact . | . . . . . . . Slashing 129 | . . . . . . 129 Piercing . | . . . . . . . Sneak Attacks 5 | . . . . . . 5 Combat Hostiles . | . . . . . . . Follow-up Attacks . | . . . . . . . Damage Inflicted 5873 | 65 429 211 . 476 1472 3220 Guns 640 | 65 253 211 . 111 . . Cannons 1828 | . . . . 365 1463 . Explosions 176 | . 176 . . . . . Melee 3220 | . . . . . . 3220 Ramming 9 | . . . . . 9 . Kinetic 2347 | . 197 211 . 476 1463 . Thermal 297 | 65 232 . . . . . Explosive . | . . . . . . . Electromagnetic . | . . . . . . . Impact . | . . . . . . . Slashing 3220 | . . . . . . 3220 Piercing . | . . . . . . . Highest Corruption 9 | . . . . . 9 2 Average Corruption 1 | . . . . . 8 1 Corruption Purged . | . . . . . . . Corruption Blocked . | . . . . . . . Effects 11 | . . . . . 2 9 Message Errors 2 | . . . . . . 2 Matter Fused 3 | . . . . . . 3 Heat Flow Errors 2 | . . . . . 1 1 Energy Discharges 2 | . . . . . . 2 Data Loss (minor) 2 | . . . . . 1 1 Overload Shots . | . . . . . . . Overflow Damage 318 | . . . . . 13 305 Projectiles 13 | . . . . . 13 . Explosions . | . . . . . . . Melee 305 | . . . . . . 305 Knockbacks 26 | . . . . 9 17 . Impact . | . . . . . . . Kinetic 23 | . . . . 8 15 . Secondary 3 | . . . . 1 2 . Self-Inflicted Damage 138 | . 134 . . . 4 . Shots 2 | . 2 . . . . . Rammed 1 | . . . . . 1 . Targets Rammed 1 | . . . . . 1 . Kicked . | . . . . . . . Crushed . | . . . . . . . Highest Temperature 364 | 72 54 87 . 165 231 364 Average Temperature 56 | 33 15 40 . 66 56 148 Received Heat Transfer 984 | . 18 108 . 75 495 288 Siege Activations . | . . . . . . . Robots Corrupted . | . . . . . . . Combat Hostiles . | . . . . . . . Parts Fried . | . . . . . . . Impact Corruptions . | . . . . . . . Robots Melted . | . . . . . . . Combat Hostiles . | . . . . . . . Parts Melted . | . . . . . . . Heat Transferred 425 | 150 275 . . . . . Parts Sabotaged . | . . . . . . . Parts Stolen . | . . . . . . . Parts Stripped . | . . . . . . . Power Chain Reactions . | . . . . . . . Missiles Intercepted . | . . . . . . . Alert | -11 -10 -10 -10 -9 -8 -7 ------- Run | Jun Mat Min Exi Min Mat Fac Peak Influence 406 | 10 241 95 . 148 406 222 Initial 184 | . 6 15 . . 57 184 Average 95 | 8 157 24 . 106 176 79 Maximum Alert Level 2 | . 1 . . . 2 1 Low Security (%) 90 | 100 65 100 . 100 59 96 Level 1 9 | . 34 . . . 39 3 Level 2 . | . . . . . . . Level 3 . | . . . . . . . Level 4 . | . . . . . . . Level 5 . | . . . . . . . High Security . | . . . . . . . Max Security . | . . . . . . . Squads Dispatched 26 | . 1 1 . . 8 16 Investigation 9 | . . 1 . . 1 7 Extermination 3 | . . . . . . 3 Reinforcement 12 | . 1 . . . 5 6 Assault . | . . . . . . . Garrison 2 | . . . . . 2 . Intercept . | . . . . . . . Searches Triggered . | . . . . . . . Construction Impeded 1 | . . . . . 1 . Haulers Reinforced 1 | . . . . . . 1 Active Scanning Responses . | . . . . . . . Cargo Convoy Interrupts 1 | . . . . . . 1 Stealth | -11 -10 -10 -10 -9 -8 -7 --------- Run | Jun Mat Min Exi Min Mat Fac Distress Signals 10 | . 1 . . . 5 4 Communications Jammed . | . . . . . . . Distress Signals . | . . . . . . . Times Spotted 95 | . 10 3 . 13 38 31 Peak Tracking Total 11 | . 4 2 . 4 11 6 Tactical Retreats 12 | . . . . 2 8 2 Traps | -11 -10 -10 -10 -9 -8 -7 ------- Run | Jun Mat Min Exi Min Mat Fac Traps Triggered 1 | . . . . . . 1 Indirectly . | . . . . . . . Trap Hack Attempts . | . . . . . . . Triggered . | . . . . . . . Disarmed . | . . . . . . . Reprogrammed . | . . . . . . . Reused . | . . . . . . . Traps Extracted . | . . . . . . . Installed . | . . . . . . . Triggered 1 | . . . . . . 1 Most Traps Carried 4 | . . 4 4 2 2 . Machines | -11 -10 -10 -10 -9 -8 -7 ---------- Run | Jun Mat Min Exi Min Mat Fac Machines Disabled 4 | . 3 . . 1 . . Max in Single Turn 3 | . 3 . . 1 . . Garrison Access 2 | . . . . . . 2 Machines Repaired . | . . . . . . . Machines Sabotaged . | . . . . . . . Overloaded Fab Kills . | . . . . . . . Hacking | -11 -10 -10 -10 -9 -8 -7 --------- Run | Jun Mat Min Exi Min Mat Fac Machines Accessed 31 | . 3 2 1 . 2 23 Terminals 14 | . 2 . . . 2 10 Fabricators 3 | . . . . . . 3 Repair Stations 2 | . . . . . . 2 Recycling Units 4 | . 1 . . . . 3 Scanalyzers 3 | . . . . . . 3 Garrison Access 2 | . . . . . . 2 Total Hacks 58 | . 4 2 1 . 5 46 Successful 30 | . 3 2 1 . 2 22 Failed 28 | . 1 . . . 3 24 Catastrophic 8 | . . . . . 1 7 Database Lockouts . | . . . . . . . Manual 12 | . 1 . 1 . 2 8 Terminals 29 | . 3 . . . 5 21 Fabricators 4 | . . . . . . 4 Repair Stations 4 | . . . . . . 4 Recycling Units 5 | . 1 . . . . 4 Scanalyzers 8 | . . . . . . 8 Garrison Access 5 | . . . . . . 5 Terminal Hacks 13 | . 2 2 1 . 2 6 Part Schematic 1 | . . . . . 1 . Open Door 2 | . . 2 . . . . Open DSF 1 | . . . . . . 1 Alert Level 2 | . 1 . . . . 1 Unreport Threat 3 | . . . . . . 3 Recall Investigation 1 | . . . . . . 1 Recall Reinforcements 1 | . 1 . . . . . Registered Prototypes 1 | . . . . . 1 . EX-Prototype ID Bank 1 | . . . 1 . . . Fabricator Hacks 2 | . . . . . . 2 Load Schematic 1 | . . . . . . 1 Build 1 | . . . . . . 1 Repair Station Hacks 1 | . . . . . . 1 Scan Component 1 | . . . . . . 1 Recycling Unit Hacks 2 | . 1 . . . . 1 Report Inventory 1 | . 1 . . . . . Retrieve Matter 1 | . . . . . . 1 Scanalyzer 8 | . . . . . . 8 Insert Component 4 | . . . . . . 4 Analyze 4 | . . . . . . 4 Garrison Access Hacks 2 | . . . . . . 2 Seal Access 2 | . . . . . . 2 Unauthorized Hacks 2 | . . . . . . 2 Terminals 1 | . . . . . . 1 Assimilate 1 | . . . . . . 1 Fabricators . | . . . . . . . Repair Stations . | . . . . . . . Recycling Units 1 | . . . . . . 1 Mask 1 | . . . . . . 1 Scanalyzers . | . . . . . . . Garrison Access . | . . . . . . . Data Cores Recovered . | . . . . . . . Used . | . . . . . . . Hacking Detections 22 | . 2 . . . 1 19 Full Trace Events 8 | . . . . . 1 7 Feedback Events 1 | . . . . . . 1 Corruption 1 | . . . . . . 1 Feedback Blocked . | . . . . . . . Robot Schematics Acquired . | . . . . . . . Robots Built . | . . . . . . . Authchips . | . . . . . . . Time . | . . . . . . . Total Robot Build Rating . | . . . . . . . Part Schematics Acquired 5 | . . . . . 1 4 Parts Built 2 | . . . . . . 2 Authchips . | . . . . . . . Time 42 | . . . . . . 42 Total Part Build Rating 8 | . . . . . . 8 Parts Repaired . | . . . . . . . Time . | . . . . . . . Parts Recycled . | . . . . . . . Recycled Matter . | . . . . . . . Retrieved Matter . | . . . . . . . Retrieved Components . | . . . . . . . Parts Scanalyzed 4 | . . . . . . 4 Part Schematics Acquired 4 | . . . . . . 4 Parts Damaged . | . . . . . . . Bothacking | -11 -10 -10 -10 -9 -8 -7 ------------ Run | Jun Mat Min Exi Min Mat Fac Used RIF Installer . | . . . . . . . Robots Hacked . | . . . . . . . Non-combat . | . . . . . . . Combat . | . . . . . . . Robot Hacks Applied . | . . . . . . . Relay Couplers Released . | . . . . . . . Fabnet Peak Effective % . | . . . . . . . Robots Rewired . | . . . . . . . Allies Hacked . | . . . . . . . Hacks Repelled . | . . . . . . . Allies | -11 -10 -10 -10 -9 -8 -7 -------- Run | Jun Mat Min Exi Min Mat Fac Total Allies 1 | . . . . . . 1 Largest Group 1 | . . . . . . 1 Highest-Rated Group 10 | . . . . . . 10 Highest-Rated Ally 10 | . . . . . . 10 Total Orders . | . . . . . . . Ally Attacks . | . . . . . . . Total Damage . | . . . . . . . Kills . | . . . . . . . Allies Corrupted . | . . . . . . . Allies Melted . | . . . . . . . Intel | -11 -10 -10 -10 -9 -8 -7 ------- Run | Jun Mat Min Exi Min Mat Fac Robot Analysis Total . | . . . . . . . Derelict Logs Recovered 1 | . . . . 1 . . Drone Launches . | . . . . . . . Drone Recoveries . | . . . . . . . Exploration | -11 -10 -10 -10 -9 -8 -7 ------------- Run | Jun Mat Min Exi Min Mat Fac Turns Passed 6750 | 42 516 505 444 764 717 3762 Spaces Moved 4198 | 22 311 325 292 353 320 2575 Core 177 | . . . . . 81 96 Treads . | . . . . . . . Legs 48 | 22 26 . . . . . Wheels 3086 | . 285 325 292 353 239 1592 Hover 887 | . . . . . . 887 Flight . | . . . . . . . Fastest Speed 42 | 120 120 135 90 190 50 42 Average Speed 122 | 120 133 135 145 190 156 104 Slowest Speed 585 | 120 135 135 195 210 585 145 Overloaded Moves 14 | . . . . . . 14 Propulsion Burnouts . | . . . . . . . Robots Hopped . | . . . . . . . Cave-ins Triggered . | . . . . . . . Exploration Rate (%) 47 | 3 49 56 60 72 34 57 Regions Visited 6 Branch Regions 3 Pre-discovered Areas . | . . . . . . . Known Exits Taken 1 | . . . . . 1 . Unknown Exits Taken 5 | 1 1 1 1 1 . . Scrap Searched 4 | . . 1 . 3 . . Spaces Dug 54 | . . . . . 1 53 Terrain Destroyed 110 | . 42 . . 8 7 53 Melee 53 | . . . . . . 53 Projectile 15 | . . . . 8 7 . AOE 42 | . 42 . . . . . Terrain Rammed . | . . . . . . . Walls Destroyed . | . . . . . . . Machines Disabled . | . . . . . . . Actions | -11 -10 -10 -10 -9 -8 -7 --------- Run | Jun Mat Min Exi Min Mat Fac Total 5394 | 27 371 374 313 403 446 3460 Wait 725 | . 19 15 . 19 40 632 Move 4192 | 21 310 324 291 352 319 2575 Hop . | . . . . . . . Pick Up 103 | . 11 13 15 8 16 40 Fast Attach 25 | 1 3 . 1 . 1 19 Attach 22 | . . . . 1 11 10 Detach 15 | . 2 . 1 . 1 11 Swap 29 | . 5 1 1 2 5 15 Drop 48 | . 1 8 4 . 6 29 Fire 105 | 5 20 13 . 21 46 . Melee 129 | . . . . . . 129 Ram 1 | . . . . . 1 . Kick . | . . . . . . . Crush . | . . . . . . . Escape Stasis . | . . . . . . . Rewire . | . . . . . . . Trap . | . . . . . . . Miscellaneous . | . . . . . . . Route ------- -11/Junkyard -10/Materials (discovered 2 exits: [*Mat] / *Min) -10/Mines -10/Exiles -9/Mines -8/Materials -7/Factory (discovered 1 exit: [Fac]) History --------- Turn | Location | Event 4 | -11/Junkyard | Discovered new exit (range 2) 43 | -11/Junkyard | Entered Materials 199 | -10/Materials | Discovered new exit (range 14) 312 | -10/Materials | Build established: Mutant 338 | -10/Materials | Discovered new exit (range 16) 559 | -10/Materials | Entered Mines 607 | -10/Mines | Found a hidden stash of uninstalled traps 689 | -10/Mines | Found the Drone Emporium 703 | -10/Mines | Found Prototype Device 767 | -10/Mines | Met a Derelict shopkeep closing up shop 879 | -10/Mines | Deemed a non-threat by the Exiles lab entrance 879 | -10/Mines | Discovered new exit (range 5) 1064 | -10/Mines | Entered Exiles 1097 | -10/Exiles | Met 8R-AWN 1120 | -10/Exiles | Met EX-HEX 1158 | -10/Exiles | Met EX-BIN 1177 | -10/Exiles | Aligned with FarCom system 1178 | -10/Exiles | Given EX-Vault access code 1216 | -10/Exiles | Opened EX-Vault 1224 | -10/Exiles | Found 0b10 Alert Chip 1252 | -10/Exiles | Warned to stay clear of 0b10 Research branches 1297 | -10/Exiles | Met EX-DEC 1483 | -10/Exiles | Discovered new exit (range 14) 1508 | -10/Exiles | Left Exiles lab with 0b10 Alert Chip 1508 | -10/Exiles | Entered Mines 1511 | -9/Mines | Met a Derelict bent on vengeance 1649 | -9/Mines | Build established: Hauler-Mutant 2218 | -9/Mines | Learned location of 1 exit from Materials 2258 | -9/Mines | Discovered new exit (range 8) 2272 | -9/Mines | Entered Materials 2272 | -8/Materials | Evolved 4 slots: Propulsion x1, Utility x3 2273 | -8/Materials | Identified exit to Factory 2598 | -8/Materials | Build established: Hauler-Skirmisher 2795 | -8/Materials | Garrison activated, responded to threat 2875 | -8/Materials | Lost 5 parts (2p1n2u) 2930 | -8/Materials | Core integrity fell below 50% 2934 | -8/Materials | Released all parts (2) 2949 | -8/Materials | Core integrity fell below 20% 2963 | -8/Materials | Lost 8 parts (3n2u3w) 2989 | -8/Materials | Entered Factory 2989 | -7/Factory | Evolved 2 slots: Utility x2 3043 | -7/Factory | Identified Sensor Drone Bay 3462 | -7/Factory | Build established: Gladiator 4031 | -7/Factory | Cargo convoy interrupted 5151 | -7/Factory | Found Powered Armor 5391 | -7/Factory | Discovered new exit (range 15) 5918 | -7/Factory | Fabricated Greatsword (x2) 6000 | -7/Factory | Build established: Assassin 6751 | -7/Factory | Self-destructed Last Messages --------------- 06561_ K-01 Serf cleans the Manufacturing Mainframe. 06568_ U-05 Engineer builds a Wall. 06569_ K-01 Serf cleans the Manufacturing Mainframe. 06581_ U-05 Engineer builds a Wall. 06631_ Connecting with Terminal... Feedback: System corruption (+1%). 06631_ ALERT: Suspicious activity at Terminal F007. Dispatching Investigation squad. 06653_ U-05 Engineer builds a Wall. 06662_ Connecting with Terminal... 06712_ Destroyed Imp. Heat Sink. 06717_ G-47 Trooper Aluminum Leg severed. 06719_ G-47 Trooper destroyed. 06725_ Acquired 10 matter. 06729_ Destroyed Lgt. Nuclear Core. 06731_ Slug penetrates Wall. 06735_ G-47 Trooper Aluminum Leg severed. 06739_ Arm. Huge Wheel destroyed. 06747_ G-47 Trooper destroyed. 06750_ Acquired 10 matter. Map ----- +----------------------------------------------------+ | ??? ?? ????? ?????#?#?????????????# | | ?# # ? ???"?""?"? ???##???##????????# | | ?# # ? ?? ???? ?##??????? ???????# """ """ | | ## #? ????????????# ???????????????# """ """ | | ?# # ?? ? ?? ?? #????#?#?????????# """ """ | | ?# #? ??""""""?? ??#?#??## ? ?????# "" "" | | ## # ? ??? ? #???#?##???#?????# "" "" | | ## # ????""""?"? ?#####??#??#?#????# | | ?# # ??? ? ? #?###????#???#???# | | ## # ? ? ???? ?########?#?#???#?# *[ | | ?# ################# #???????### [ [ | | ## # """ ##?#! #????#####"#######+# | | ## # "T" ! #### " " #????# # **[ | | ?# # #### " " ###### # [ | | ## # + / " " ###??# # | | ## / """" """" #### " " #?#?## + | | ## # """" """" ##?# " " #?g ?#h # | | ## + """" """" #?## " " #???## # | | ## # """" """" ##?# " " ####?# # | | # # """" """" ##?# " " #?##?# # | | # # """" """" #### " " #?#########+#### | | # # #??# #?##??###?# #??# | | # # #?## ##?#??????# #??# | | # ##############?###+######????#???# #??# | | + T##############?##!#?####?##?#?#?# #??# | | # ##?###?#######??#@##?#??###?????# #??# | | # #############?####=############### #### | | # ########?###?###?#=%= | | # ####??#??##?######=*= ############# | | # ##?###############% ""#?#?##??????# | | # ##### # Y"##?#????????# | | ## ##??# # """ ""##???############ | | ## ##### # """ ###### | | ## #??## # """ ## """"""""" | | !#% #?### """ """ # "" ## | | #^ ###?# """ """ + "" %* + """"""""" | | # ##### """ """ # ## | | # ##?## = + ## ! | | # #?#?# =""" ###### ############# | | + ##### ! """ ##???# ############# | | # ##### "T" """ ##?#?# | | # ##### """ #??#?### | | # ##################??????# | | # # #?????????# | | # # #?????????# | | # # #?????????# #####+ | | ## + #????###### # | | ## # ###### # | | ## # + ######## # | | ## # # #?#??#?# # """ | +----------------------------------------------------+ Best States ------------- Heat Dissipation 34 Energy Generation 18 Energy Capacity 310 Matter Stores 300 Matter Capacity 300 Sight Range 16 Robot Scan Range 14 Terrain Scan Range 16 Terrain Scan Density 210 Armor Coverage 225 Utility Shielding 33 Melee Speed Boost 20 Evasion (%) 64 Targeting Accuracy 5 Melee Accuracy 5 Target Analysis 5 Armor Integrity Analysis 30 Item Schematics ----------------- Arm. Wheel | -8/Materials | Hacked Microactuators | -7/Factory | Scanalyzed Greatsword | -7/Factory | Scanalyzed Hacking Suite | -7/Factory | Scanalyzed Arm. Huge Wheel | -7/Factory | Scanalyzed Robot Schematics ------------------ None Fabricated ------------ Greatsword | x2 | -7/Factory Alien Tech Used ----------------- None Achievements -------------- None Challenges ------------ None Game ------ Seed StructuralRecoilWings Manual? 0 Play Time 01:06:32 Cumulative 132.1 hours Start 2023.07.30 @ 18:47:49 End 2023.07.31 @ 15:44:15 Sessions 11 Manual Loads 0 Difficulty Rogue Special Mode None Game No. 209 Rogue 209 Adventurer 0 Explorer 0 Win Type - Total 1 Types 1/0/0/0/0/0/0/0/0 Lore% 57 Gallery% 62 Achievement% 47 Wizard Run 0 Options --------- ASCII 0 Keyboard 1 Movement Numpad Keybinds 0 Fullscreen 1 Font 18/SmallcapsGlow Map View 76x50 Tactical HUD 1 Map Filters NONE Filters NONE Steam 1 RUN: 96dabf24-1081-4320-a41c-56c3dad6a19c